fUSD/lending_fUSD_20240508
["ID","MTS","AMOUNT","RATE_DAILY","PERIOD"]
[326664934,1715208653996,-500.0,0.00027397,2]
[326664936,1715208654007,-594.68,0.00027397,2]
[326664938,1715208654017,-500.0,0.00027397,2]
[326664939,1715208654026,-500.0,0.00027397,2]
[326664942,1715208654036,-500.0,0.00027397,2]
[326664943,1715208654045,-500.0,0.00027397,2]
[326664946,1715208654055,-500.0,0.00027397,2]
[326664948,1715208654065,-500.0,0.00027397,2]
[326664950,1715208654074,-500.0,0.00027397,2]
[326664952,1715208654083,-500.0,0.00027397,2]
[326664954,1715208654093,-500.0,0.00027397,2]
[326664956,1715208654102,-500.0,0.00027397,2]
[326664958,1715208654111,-500.0,0.00027397,2]
[326664960,1715208654124,-734.36,0.00027397,2]
[326664962,1715208654134,-562.62,0.00027397,2]
[326664964,1715208654143,-261.57576832,0.00027397,2]
[326664966,1715208654153,-500.0,0.00027397,2]
[326664968,1715208654163,-572.54,0.00027397,2]
[326664970,1715208654172,-2781.64,0.00027397,2]
[326664971,1715208654182,-500.0,0.00027397,2]
[326664973,1715208654192,-500.0,0.00027397,2]
[326664975,1715208654202,-500.0,0.00027397,2]
[326664978,1715208654212,-500.0,0.00027397,2]
[326664980,1715208654221,-500.0,0.00027397,2]
[326664981,1715208654231,-500.0,0.00027397,2]
[326664983,1715208654240,-500.0,0.00027397,2]
[326664986,1715208654250,-505.67,0.00027397,2]
[326664988,1715208654260,-500.0,0.00027397,2]
[326664990,1715208654270,-500.0,0.00027397,2]
[326664992,1715208654279,-500.0,0.00027397,2]
[326664994,1715208654289,-500.0,0.00027397,2]
[326664996,1715208654300,-500.0,0.00027397,2]
[326664998,1715208654313,-500.0,0.00027397,2]
[326665000,1715208654322,-610.7,0.00027397,2]
[326665002,1715208654331,-882.61,0.00027397,2]
[326665003,1715208654341,-500.0,0.00027397,2]
[326665005,1715208654351,-500.0,0.00027397,2]
[326665008,1715208654361,-500.0,0.00027397,2]
[326665009,1715208654371,-500.0,0.00027397,2]
[326665011,1715208654381,-1152.81,0.00027397,2]
[326665014,1715208654393,-500.0,0.00027397,2]
[326665016,1715208654404,-500.0,0.00027397,2]
[326665018,1715208654414,-500.0,0.00027397,2]
[326665020,1715208654423,-500.0,0.00027397,2]
[326665022,1715208654432,-1648.66,0.00027397,2]
[326665024,1715208654442,-500.0,0.00027397,2]
[326665026,1715208654451,-500.0,0.00027397,2]
[326665028,1715208654462,-500.0,0.00027397,2]
[326665030,1715208654471,-500.0,0.00027397,2]
[326665032,1715208654481,-500.0,0.00027397,2]
[326665033,1715208654490,-500.0,0.00027397,2]
[326665035,1715208654500,-517.48,0.00027397,2]
[326665037,1715208654510,-1014.85,0.00027397,2]
[326665039,1715208654520,-500.0,0.00027397,2]
[326665040,1715208654530,-500.0,0.00027397,2]
[326665041,1715208654539,-500.0,0.00027397,2]
[326665042,1715208654548,-1320.52,0.00027397,2]
[326665043,1715208654557,-2331.73,0.00027397,2]
[326665044,1715208654567,-814.17,0.00027397,2]
[326665045,1715208654576,-500.0,0.00027397,2]
[326665046,1715208654585,-500.0,0.00027397,2]
[326665047,1715208654595,-500.0,0.00027397,2]
[326665048,1715208654604,-500.0,0.00027397,2]
[326665049,1715208654614,-500.0,0.00027397,2]
[326665050,1715208654625,-500.0,0.00027397,2]
[326665052,1715208654634,-500.0,0.00027397,2]
[326665054,1715208654644,-500.0,0.00027397,2]
[326665056,1715208654653,-500.0,0.00027397,2]
[326665058,1715208654663,-635.17,0.00027397,2]
[326665060,1715208654672,-525.03,0.00027397,2]
[326665062,1715208654682,-500.0,0.00027397,2]
[326665064,1715208654691,-1781.4,0.00027397,2]
[326665066,1715208654701,-500.0,0.00027397,2]
[326665068,1715208654711,-500.0,0.00027397,2]
[326665070,1715208654720,-1951.16,0.00027397,2]
[326665072,1715208654731,-500.0,0.00027397,2]
[326665074,1715208654740,-500.0,0.00027397,2]
[326665076,1715208654750,-630.22,0.00027397,2]
[326665078,1715208654760,-500.0,0.00027397,2]
[326665080,1715208654769,-606.44,0.00027397,2]
[326665082,1715208654778,-500.0,0.00027397,2]
[326665084,1715208654788,-968.67,0.00027397,2]
[326665086,1715208654798,-500.42,0.00027397,2]
[326665088,1715208654807,-500.0,0.00027397,2]
[326665090,1715208654817,-500.0,0.00027397,2]
[326665092,1715208654826,-500.0,0.00027397,2]
[326665094,1715208654836,-500.0,0.00027397,2]
[326665096,1715208654845,-500.0,0.00027397,2]
[326665098,1715208654855,-500.0,0.00027397,2]
[326665100,1715208654866,-500.0,0.00027397,2]
[326665102,1715208654877,-500.0,0.00027397,2]
[326665104,1715208654887,-500.0,0.00027397,2]
[326665106,1715208654897,-641.29,0.00027397,2]
[326665108,1715208654907,-500.0,0.00027397,2]
[326665110,1715208654917,-500.0,0.00027397,2]
[326665112,1715208654926,-637.14,0.00027397,2]
[326665114,1715208654936,-500.0,0.00027397,2]
[326665116,1715208654945,-500.0,0.00027397,2]
[326665118,1715208654955,-637.37,0.00027397,2]
[326665120,1715208654964,-500.0,0.00027397,2]
[326665122,1715208654974,-500.0,0.00027397,2]
[326665124,1715208654984,-2380.9,0.00027397,2]
[326665126,1715208654995,-500.0,0.00027397,2]
[326665128,1715208655005,-611.06,0.00027397,2]
[326665131,1715208655015,-858.35,0.00027397,2]
[326665133,1715208655024,-500.0,0.00027397,2]
[326665135,1715208655034,-500.0,0.00027397,2]
[326665137,1715208655043,-500.0,0.00027397,2]
[326665139,1715208655053,-500.0,0.00027397,2]
[326665140,1715208655062,-500.0,0.00027397,2]
[326665143,1715208655072,-500.0,0.00027397,2]
[326665144,1715208655082,-500.0,0.00027397,2]
[326665147,1715208655092,-500.0,0.00027397,2]
[326665149,1715208655102,-500.0,0.00027397,2]
[326665150,1715208655111,-611.05,0.00027397,2]
[326665153,1715208655123,-645.56,0.00027397,2]
[326665155,1715208655133,-15383.75,0.00027397,2]
[326665157,1715208655142,-500.0,0.00027397,2]
[326665159,1715208655153,-500.0,0.00027397,2]
[326665161,1715208655162,-774.77,0.00027397,2]
[326665163,1715208655172,-500.0,0.00027397,2]
[326665165,1715208655181,-500.0,0.00027397,2]
[326665167,1715208655191,-1283.74,0.00027397,2]
[326665169,1715208655201,-500.0,0.00027397,2]
[326665171,1715208655211,-500.0,0.00027397,2]
[326665173,1715208655221,-500.0,0.00027397,2]
[326665175,1715208655231,-500.0,0.00027397,2]
[326665177,1715208655241,-500.0,0.00027397,2]
[326665179,1715208655250,-723.48,0.00027397,2]
[326665181,1715208655259,-500.0,0.00027397,2]
[326665183,1715208655270,-500.0,0.00027397,2]
[326665185,1715208655279,-239.05,0.00027397,2]
[326665187,1715208655289,-500.0,0.00027397,2]
[326665189,1715208655299,-2928.78,0.00027397,2]
[326665191,1715208655313,-500.0,0.00027397,2]
[326665193,1715208655322,-526.97,0.00027397,2]
[326665195,1715208655332,-500.0,0.00027397,2]
[326665197,1715208655342,-500.0,0.00027397,2]
[326665199,1715208655353,-500.0,0.00027397,2]
[326665201,1715208655363,-500.0,0.00027397,2]
[326665203,1715208655375,-500.0,0.00027397,2]
[326665205,1715208655387,-500.0,0.00027397,2]
[326665208,1715208655397,-500.0,0.00027397,2]
[326665210,1715208655406,-500.0,0.00027397,2]
[326665212,1715208655417,-500.0,0.00027397,2]
[326665213,1715208655427,-500.0,0.00027397,2]
[326665215,1715208655438,-500.0,0.00027397,2]
[326665218,1715208655448,-4544.42,0.00027397,2]
[326665219,1715208655458,-219.48,0.00027397,2]
[326665221,1715208655468,-500.0,0.00027397,2]
[326665223,1715208655478,-577.53,0.00027397,2]
[326665225,1715208655489,-500.0,0.00027397,2]
[326665227,1715208655499,-500.0,0.00027397,2]
[326665229,1715208655509,-500.0,0.00027397,2]
[326665231,1715208655519,-500.0,0.00027397,2]
[326665233,1715208655530,-500.0,0.00027397,2]
[326665235,1715208655539,-500.0,0.00027397,2]
[326665237,1715208655549,-500.0,0.00027397,2]
[326665239,1715208655558,-200.0,0.00027397,2]
[326665241,1715208655568,-150.0,0.00027397,2]
[326665243,1715208655577,-166.98,0.00027397,2]
[326665246,1715208655596,-8521.21,0.00027397,2]
[326665248,1715208655609,-2031.38691559,0.000274,7]
[326665250,1715208655621,-2031.38691559,0.000274,7]
[326665252,1715208655631,-2031.38691559,0.000274,7]
[326665254,1715208655642,-1745.90149275,0.000274,7]
[326665284,1715208655932,-285.48542284,0.000274,7]
[326665286,1715208655941,-1693.41979062,0.000274,7]
[326665288,1715208655955,-337.96712497,0.000274,7]
[326665290,1715208655965,-2031.38691559,0.000274,7]
[326665292,1715208655974,-1107.18317706,0.000274,7]
[326665295,1715208655985,-924.20373853,0.000274,7]
[326665297,1715208655995,-124.37902447,0.000274,7]
[326665299,1715208656006,-503.48872017,0.000274,7]
[326665325,1715208656249,-1305.5717064,0.000274,7]
[326665327,1715208656260,-97.94746455,0.000274,7]
[326665329,1715208656270,-337.72335828,0.000274,7]
[326665331,1715208656282,-1225.7093744,0.000274,7]
[326665334,1715208656295,-467.95418291,0.000274,7]
[326665336,1715208656309,-313.62081709,0.000274,7]
[326665338,1715208656322,-1717.7660985,0.000274,7]
[326665340,1715208656331,-2031.38691559,0.000274,7]
[326665342,1715208656347,-2031.38691559,0.000274,7]
[326665344,1715208656372,-2031.38691559,0.000274,7]
[326665346,1715208656406,-569.20170205,0.000274,7]
[326665348,1715208656431,-1462.18521354,0.000274,7]
[326665350,1715208656446,-2031.38691559,0.000274,7]
[326665353,1715208656457,-2031.38691559,0.000274,7]
[326665355,1715208656468,-2031.38691559,0.000274,7]
[326665357,1715208656478,-2031.38691559,0.000274,7]
[326665359,1715208656488,-2031.38691559,0.000274,7]
[326665361,1715208656498,-2031.88,0.000274,7]
[326665363,1715208656508,-150.0,0.000274,5]
[326665365,1715208656518,-635.65173729,0.000274,7]
[326665367,1715208656528,-635.65173729,0.000274,7]
[326665369,1715208656537,-635.65173729,0.000274,7]
[326665371,1715208656547,-635.65173729,0.000274,7]
[326665373,1715208656556,-635.65173729,0.000274,7]
[326665375,1715208656565,-635.65173729,0.000274,7]
[326665377,1715208656575,-635.65173729,0.000274,7]
[326665379,1715208656584,-635.65173729,0.000274,7]
[326665381,1715208656593,-635.65173729,0.000274,7]
[326665383,1715208656603,-635.65173729,0.000274,7]
[326665385,1715208656612,-635.65173729,0.000274,7]
[326665387,1715208656624,-635.65173729,0.000274,7]
[326665389,1715208656633,-635.65173729,0.000274,7]
[326665391,1715208656642,-635.65173729,0.000274,7]
[326665393,1715208656652,-635.65173729,0.000274,7]
[326665395,1715208656661,-635.65173729,0.000274,7]
[326665397,1715208656670,-635.65173729,0.000274,7]
[326665399,1715208656680,-635.65173729,0.000274,7]
[326665401,1715208656689,-635.65173729,0.000274,7]
[326665403,1715208656698,-636.15,0.000274,7]
[326665405,1715208656708,-154.04074801,0.000274,7]
[326665407,1715208656717,-154.04074801,0.000274,7]
[326665409,1715208656727,-154.04074801,0.000274,7]
[326665411,1715208656738,-154.04074801,0.000274,7]
[326665413,1715208656747,-154.04074801,0.000274,7]
[326665415,1715208656757,-154.04074801,0.000274,7]
[326665417,1715208656766,-154.04074801,0.000274,7]
[326665419,1715208656775,-154.04074801,0.000274,7]
[326665421,1715208656785,-154.04074801,0.000274,7]
[326665423,1715208656794,-154.04074801,0.000274,7]
[326665425,1715208656805,-154.04074801,0.000274,7]
[326665427,1715208656814,-154.04074801,0.000274,7]
[326665429,1715208656824,-154.04074801,0.000274,7]
[326665431,1715208656835,-154.04074801,0.000274,7]
[326665433,1715208656844,-154.04074801,0.000274,7]
[326665435,1715208656854,-68.54205953,0.000274,7]
[326665567,1715208658219,-185.04,0.000137,2]
[326665569,1715208658229,-280.41006,0.0001788,2]
[326665571,1715208658241,-500.0,0.0001788,2]
[326665573,1715208658253,-761.05460391,0.0001788,2]
[326665576,1715208658265,-6640.65516025,0.0001788,2]
[326665578,1715208658277,-3162.4755559,0.0001788,2]
[326665580,1715208658289,-276.90558802,0.0001788,2]
[326665582,1715208658302,-1599.5539168,0.0001788,2]
[326665585,1715208658316,-546.38881374,0.0001788,2]
[326665587,1715208658328,-454.58727963,0.0001788,2]
[326665686,1715208659350,-185.04,0.000137,2]
[326665688,1715208659359,-627.2400005,0.0001788,2]
[326665690,1715208659371,-1009.50312536,0.0001788,2]
[326665692,1715208659383,-1663.64421668,0.0001788,2]
[326665694,1715208659395,-616.14984,0.0001788,2]
[326665697,1715208659406,-38064.25449782,0.0001788,2]
[326665699,1715208659418,-283.98054733,0.0001788,2]
[326665701,1715208659430,-702.5190202,0.0001788,2]
[326665703,1715208659441,-129127.10140081,0.0001788,2]
[326665706,1715208659451,-500.0,0.00026022,2]
[326665707,1715208659461,-500.0,0.00026022,2]
[326665709,1715208659471,-500.0,0.00026022,2]
[326665711,1715208659481,-500.0,0.00026022,2]
[326665713,1715208659491,-500.0,0.00026022,2]
[326665715,1715208659500,-500.0,0.00026022,2]
[326665718,1715208659511,-500.0,0.00026022,2]
[326665720,1715208659521,-500.0,0.00026022,2]
[326665722,1715208659530,-500.0,0.00026022,2]
[326665724,1715208659540,-500.0,0.00026022,2]
[326665726,1715208659550,-500.0,0.00026022,2]
[326665728,1715208659559,-585.70927361,0.00026022,2]
[326665730,1715208659568,-500.0,0.00026022,2]
[326665732,1715208659578,-500.0,0.00026022,2]
[326665734,1715208659587,-500.0,0.00026022,2]
[326665736,1715208659597,-500.0,0.00026022,2]
[326665738,1715208659606,-500.0,0.00026022,2]
[326665740,1715208659616,-500.0,0.00026022,2]
[326665742,1715208659628,-267.47153317,0.00026022,2]
[326665744,1715208659638,-500.0,0.00026022,2]
[326665746,1715208659648,-500.0,0.00027397,2]
[326665748,1715208659657,-500.0,0.00027397,2]
[326665750,1715208659667,-500.0,0.00027397,2]
[326665752,1715208659677,-500.0,0.00027397,2]
[326665754,1715208659687,-500.0,0.00027397,2]
[326665756,1715208659696,-500.0,0.00027397,2]
[326665758,1715208659706,-500.0,0.00027397,2]
[326665761,1715208659716,-500.0,0.00027397,2]
[326665763,1715208659726,-500.0,0.00027397,2]
[326665765,1715208659735,-500.0,0.00027397,2]
[326665784,1715208659901,-500.0,0.00027397,2]
[326665786,1715208659917,-500.0,0.00027397,2]
[326665788,1715208659926,-500.0,0.00027397,2]
[326665790,1715208659935,-500.0,0.00027397,2]
[326665792,1715208659945,-507.41,0.00027397,2]
[326665794,1715208659954,-500.0,0.00027397,2]
[326665796,1715208659964,-500.0,0.00027397,2]
[326665798,1715208659974,-500.0,0.00027397,2]
[326665800,1715208659983,-500.0,0.00027397,2]
[326665802,1715208659993,-500.0,0.00027397,2]
[326665804,1715208660002,-552.15,0.00027397,2]
[326665806,1715208660012,-503.89,0.00027397,2]
[326665809,1715208660021,-85.49868848,0.000274,7]
[326665811,1715208660031,-154.04074801,0.000274,7]
[326665813,1715208660041,-154.04074801,0.000274,7]
[326665814,1715208660050,-154.54,0.000274,7]
[326665817,1715208660060,-626.51583193,0.000274,7]
[326665819,1715208660069,-157.050907,0.00027448,18]
[326665821,1715208660079,-153.31005594,0.0002755,2]
[326665823,1715208660088,-2100.0,0.00027631,2]
[326665825,1715208660097,-161.98226117,0.00027652,2]
[326665826,1715208660106,-387.22418,0.00027671,14]
[326665829,1715208660116,-157.050907,0.00027748,18]
[326665831,1715208660127,-365.1,0.000278,2]
[326665833,1715208660136,-1000.0,0.00027845,2]
[326665835,1715208660145,-150.0,0.00027884,2]
[326665837,1715208660155,-150.0,0.000279,5]
[326665839,1715208660164,-150.0,0.00027934,2]
[326665841,1715208660173,-150.0,0.00027944,10]
[326665843,1715208660183,-630.64,0.00027945,5]
[326665845,1715208660192,-500.0,0.00027945,5]
[326665847,1715208660203,-1134.12,0.00027945,5]
[326665848,1715208660212,-500.0,0.00027945,5]
[326665850,1715208660222,-500.0,0.00027945,2]
[326665852,1715208660232,-500.0,0.00027945,5]
[326665854,1715208660242,-500.0,0.00027945,5]
[326665857,1715208660252,-648.7,0.00027945,5]
[326665859,1715208660261,-500.0,0.00027945,5]
[326665861,1715208660271,-500.0,0.00027945,5]
[326665863,1715208660281,-500.0,0.00027945,5]
[326665865,1715208660291,-500.0,0.00027945,5]
[326665867,1715208660303,-500.0,0.00027945,5]
[326665868,1715208660314,-1696.86,0.00027945,5]
[326665870,1715208660324,-303.52,0.00027945,5]
[326665872,1715208660333,-500.0,0.00027945,5]
[326665874,1715208660343,-1200.14,0.00027945,5]
[326665876,1715208660354,-209.27923061,0.00027945,5]
[326665879,1715208660364,-1133.78,0.00027945,5]
[326665881,1715208660375,-1384.35,0.00027945,5]
[326665883,1715208660387,-2566.25,0.00027945,5]
[326665885,1715208660398,-500.0,0.00027945,5]
[326665886,1715208660408,-500.0,0.00027945,5]
[326665889,1715208660418,-715.4,0.00027945,5]
[326665890,1715208660427,-500.0,0.00027945,5]
[326665893,1715208660437,-500.0,0.00027945,5]
[326665894,1715208660446,-2019.72,0.00027945,5]
[326665896,1715208660456,-425.25,0.00027945,5]
[326665899,1715208660466,-500.0,0.00027945,5]
[326665901,1715208660476,-500.0,0.00027945,5]
[326665903,1715208660486,-500.0,0.00027945,5]
[326665904,1715208660496,-500.0,0.00027945,2]
[326665906,1715208660505,-1896.36,0.00027945,5]
[326665909,1715208660516,-1272.4,0.00027945,5]
[326665911,1715208660526,-333.82,0.00027945,5]
[326665912,1715208660536,-444.86,0.00027945,5]
[326665915,1715208660546,-1036.1,0.00027945,5]
[326665916,1715208660555,-500.0,0.00027945,5]
[326665919,1715208660565,-1122.05,0.00027945,5]
[326665921,1715208660574,-164.67,0.00027945,5]
[326665923,1715208660583,-939.64,0.00027945,5]
[326665924,1715208660593,-381.3,0.00027945,5]
[326665926,1715208660602,-499.09,0.00027945,5]
[326665929,1715208660612,-500.0,0.00027945,5]
[326665931,1715208660621,-500.0,0.00027945,5]
[326665933,1715208660633,-500.0,0.00027945,5]
[326665935,1715208660642,-186.46,0.00027945,5]
[326665937,1715208660651,-500.0,0.00027945,5]
[326665939,1715208660660,-500.0,0.00027945,5]
[326665941,1715208660669,-1036.9,0.00027945,5]
[326665943,1715208660679,-500.0,0.00027945,5]
[326665945,1715208660688,-500.0,0.00027945,5]
[326665947,1715208660697,-500.0,0.00027945,5]
[326665949,1715208660706,-500.0,0.00027945,5]
[326665951,1715208660715,-500.0,0.00027945,5]
[326665953,1715208660724,-500.0,0.00027945,5]
[326665955,1715208660733,-500.0,0.00027945,5]
[326665957,1715208660743,-500.0,0.00027945,5]
[326665959,1715208660752,-1530.03,0.00027945,5]
[326665961,1715208660761,-1400.94,0.00027945,5]
[326665963,1715208660771,-245.41,0.00027945,5]
[326665965,1715208660780,-193.82,0.00027945,5]
[326665967,1715208660789,-500.0,0.00027945,5]
[326665969,1715208660798,-500.0,0.00027945,5]
[326665971,1715208660808,-730.81,0.00027945,5]
[326665973,1715208660817,-1646.37,0.00027945,5]
[326665974,1715208660826,-500.0,0.00027945,5]
[326665975,1715208660835,-307.82,0.00027945,5]
[326665976,1715208660844,-500.0,0.00027945,5]
[326665977,1715208660853,-1236.03,0.00027945,5]
[326665978,1715208660863,-233.67,0.00027945,5]
[326665979,1715208660872,-500.0,0.00027945,5]
[326665980,1715208660882,-500.0,0.00027945,5]
[326665981,1715208660891,-500.0,0.00027945,5]
[326665983,1715208660901,-500.0,0.00027945,5]
[326665985,1715208660910,-500.0,0.00027945,5]
[326665987,1715208660919,-500.0,0.00027945,5]
[326665989,1715208660929,-500.0,0.00027945,5]
[326665991,1715208660939,-500.0,0.00027945,2]
[326665993,1715208660948,-819.95,0.00027945,5]
[326665995,1715208660959,-500.0,0.00027945,5]
[326665997,1715208660969,-500.0,0.00027945,5]
[326665999,1715208660978,-500.0,0.00027945,5]
[326666001,1715208660987,-500.0,0.00027945,5]
[326666003,1715208660996,-500.0,0.00027945,5]
[326666005,1715208661005,-500.0,0.00027945,5]
[326666007,1715208661015,-500.0,0.00027945,5]
[326666008,1715208661024,-500.0,0.00027945,5]
[326666010,1715208661033,-219.73,0.00027945,5]
[326666012,1715208661042,-500.0,0.00027945,5]
[326666014,1715208661051,-500.0,0.00027945,5]
[326666016,1715208661060,-500.0,0.00027945,5]
[326666018,1715208661070,-500.0,0.00027945,5]
[326666020,1715208661079,-500.0,0.00027945,5]
[326666022,1715208661088,-281.62,0.00027945,5]
[326666024,1715208661097,-500.0,0.00027945,5]
[326666026,1715208661106,-500.0,0.00027945,5]
[326666028,1715208661115,-696.75,0.00027945,5]
[326666030,1715208661125,-500.0,0.00027945,5]
[326666032,1715208661134,-500.0,0.00027945,5]
[326666034,1715208661145,-500.0,0.00027945,5]
[326666036,1715208661155,-500.0,0.00027945,5]
[326666038,1715208661165,-500.0,0.00027945,5]
[326666040,1715208661174,-500.0,0.00027945,5]
[326666042,1715208661183,-1356.82,0.00027945,5]
[326666044,1715208661192,-160.56,0.00027945,5]
[326666046,1715208661202,-500.0,0.00027945,5]
[326666048,1715208661211,-1246.1,0.00027945,5]
[326666050,1715208661221,-500.0,0.00027945,5]
[326666052,1715208661231,-500.0,0.00027945,5]
[326666054,1715208661240,-500.0,0.00027945,5]
[326666056,1715208661250,-2224.72,0.00027945,5]
[326666058,1715208661259,-500.0,0.00027945,5]
[326666060,1715208661268,-500.0,0.00027945,5]
[326666062,1715208661278,-4068.39,0.00027945,5]
[326666064,1715208661288,-500.0,0.00027945,5]
[326666066,1715208661298,-288.28,0.00027945,5]
[326666068,1715208661311,-500.0,0.00027945,5]
[326666070,1715208661320,-227.22,0.00027945,5]
[326666072,1715208661330,-178.8,0.00027945,5]
[326666074,1715208661339,-429.24414194,0.00027945,5]
[326666076,1715208661349,-500.0,0.00027945,5]
[326666078,1715208661358,-236.41,0.00027945,5]
[326666080,1715208661368,-500.0,0.00027945,5]
[326666082,1715208661379,-500.0,0.00027945,5]
[326666084,1715208661390,-500.0,0.00027945,5]
[326666086,1715208661399,-201.64,0.00027945,5]
[326666088,1715208661410,-338.45,0.00027945,5]
[326666090,1715208661419,-500.0,0.00027945,5]
[326666092,1715208661428,-214.38,0.00027945,5]
[326666094,1715208661438,-500.0,0.00027945,5]
[326666096,1715208661448,-500.0,0.00027945,5]
[326666098,1715208661457,-500.0,0.00027945,5]
[326666100,1715208661469,-382.75,0.00027945,5]
[326666102,1715208661478,-1182.04,0.00027945,5]
[326666104,1715208661488,-500.0,0.00027945,5]
[326666106,1715208661497,-500.0,0.00027945,5]
[326666108,1715208661506,-300.72,0.00027945,5]
[326666110,1715208661516,-500.0,0.00027945,5]
[326666112,1715208661526,-500.0,0.00027945,5]
[326666114,1715208661535,-500.0,0.00027945,5]
[326666116,1715208661545,-500.0,0.00027945,5]
[326666118,1715208661555,-1568.97,0.00027945,5]
[326666120,1715208661565,-500.0,0.00027945,5]
[326666122,1715208661574,-167.59,0.00027945,5]
[326666124,1715208661583,-299.69,0.00027945,5]
[326666126,1715208661593,-500.0,0.00027945,5]
[326666128,1715208661603,-1491.92,0.00027945,5]
[326666130,1715208661613,-1386.12,0.00027945,5]
[326666132,1715208661623,-500.0,0.00027945,5]
[326666134,1715208661633,-500.0,0.00027945,5]
[326666136,1715208661643,-500.0,0.00027945,5]
[326666138,1715208661652,-500.0,0.00027945,5]
[326666140,1715208661661,-406.01,0.00027945,5]
[326666142,1715208661670,-500.0,0.00027945,5]
[326666144,1715208661679,-500.0,0.00027945,5]
[326666146,1715208661688,-500.0,0.00027945,5]
[326666148,1715208661697,-206.27,0.00027945,5]
[326666150,1715208661707,-500.0,0.00027945,5]
[326666152,1715208661716,-621.77,0.00027945,5]
[326666154,1715208661725,-1122.08,0.00027945,5]
[326666156,1715208661734,-500.0,0.00027945,5]
[326666158,1715208661744,-500.0,0.00027945,5]
[326666160,1715208661753,-500.0,0.00027945,5]
[326666162,1715208661762,-5482.33,0.00027945,5]
[326666164,1715208661771,-500.0,0.00027945,5]
[326666166,1715208661780,-1037.26,0.00027945,5]
[326666168,1715208661789,-500.0,0.00027945,5]
[326666170,1715208661802,-500.0,0.00027945,5]
[326666172,1715208661823,-500.0,0.00027945,5]
[326666174,1715208661844,-500.0,0.00027945,5]
[326666176,1715208661854,-634.29,0.00027945,5]
[326666178,1715208661863,-596.87,0.00027945,5]
[326666180,1715208661872,-500.0,0.00027945,5]
[326666182,1715208661882,-499.86,0.00027945,5]
[326666184,1715208661892,-500.0,0.00027945,5]
[326666186,1715208661901,-500.0,0.00027945,5]
[326666188,1715208661910,-500.0,0.00027945,5]
[326666190,1715208661919,-500.0,0.00027945,5]
[326666192,1715208661928,-217.54,0.00027945,5]
[326666194,1715208661938,-577.97,0.00027945,5]
[326666196,1715208661947,-1300.57,0.00027945,5]
[326666198,1715208661956,-567.66,0.00027945,5]
[326666200,1715208661965,-500.0,0.00027945,5]
[326666202,1715208661974,-151.0,0.00027945,7]
[326666204,1715208661984,-500.0,0.00027945,5]
[326666206,1715208661993,-500.0,0.00027945,5]
[326666208,1715208662002,-2699.75,0.00027945,5]
[326666210,1715208662012,-500.0,0.00027945,5]
[326666212,1715208662022,-156.13,0.00027945,5]
[326666214,1715208662031,-500.0,0.00027945,5]
[326666216,1715208662041,-500.0,0.00027945,5]
[326666218,1715208662050,-884.38,0.00027945,5]